fUSD/lending_fUSD_20251014
["ID","MTS","AMOUNT","RATE_DAILY","PERIOD"]
[391288812,1760470257710,-500.0,0.00016438,2]
[391288813,1760470257719,-500.0,0.00016438,2]
[391288814,1760470257728,-500.0,0.00016438,2]
[391288815,1760470257738,-500.0,0.00016438,2]
[391288816,1760470257747,-1043.82,0.00016438,2]
[391288817,1760470257757,-4028.9,0.00016438,2]
[391288818,1760470257766,-1169.86,0.00016438,2]
[391288819,1760470257775,-500.0,0.00016438,2]
[391288820,1760470257785,-1439.27,0.00016438,2]
[391288821,1760470257794,-949.53,0.00016438,2]
[391288822,1760470257803,-500.0,0.00016438,2]
[391288823,1760470257812,-500.0,0.00016438,2]
[391288824,1760470257822,-728.12,0.00016438,2]
[391288825,1760470257831,-500.0,0.00016438,2]
[391288826,1760470257840,-500.0,0.00016438,2]
[391288827,1760470257850,-500.0,0.00016438,2]
[391288828,1760470257859,-2516.02,0.00016438,2]
[391288829,1760470257869,-1022.31,0.00016438,2]
[391288830,1760470257878,-2298.98,0.00016438,2]
[391288831,1760470257888,-500.0,0.00016438,2]
[391288832,1760470257897,-1563.02,0.00016438,2]
[391288833,1760470257907,-500.0,0.00016438,2]
[391288834,1760470257916,-500.0,0.00016438,2]
[391288835,1760470257925,-500.0,0.00016438,2]
[391288836,1760470257934,-500.0,0.00016438,2]
[391288837,1760470257943,-8556.41,0.00016438,2]
[391288838,1760470257952,-500.0,0.00016438,2]
[391288839,1760470257962,-500.0,0.00016438,2]
[391288840,1760470257971,-500.0,0.00016438,2]
[391288841,1760470257980,-500.0,0.00016438,2]
[391288842,1760470257989,-784.26,0.00016438,2]
[391288843,1760470257998,-767.04,0.00016438,2]
[391288844,1760470258008,-2910.67,0.00016438,2]
[391288845,1760470258018,-1704.56,0.00016438,2]
[391288846,1760470258027,-500.0,0.00016438,2]
[391288847,1760470258036,-500.0,0.00016438,2]
[391288848,1760470258045,-500.0,0.00016438,2]
[391288849,1760470258055,-805.53,0.00016438,2]
[391288850,1760470258064,-433.70026066,0.00016438,2]
[391288851,1760470258075,-844.08,0.00016438,2]
[391288852,1760470258084,-500.0,0.00016438,2]
[391288853,1760470258094,-1349.7,0.00016438,2]
[391288854,1760470258104,-1008.94,0.00016438,2]
[391288855,1760470258113,-500.0,0.00016438,2]
[391288856,1760470258122,-2166.86,0.00016438,2]
[391288857,1760470258132,-500.0,0.00016438,2]
[391288858,1760470258141,-1434.57,0.00016438,2]
[391288859,1760470258150,-736.6,0.00016438,2]
[391288860,1760470258160,-555.68,0.00016438,2]
[391288861,1760470258169,-645.28,0.00016438,2]
[391288862,1760470258178,-500.0,0.00016438,2]
[391288863,1760470258187,-362.18891216,0.00016438,2]
[391288864,1760470258196,-630.95,0.00016438,2]
[391288865,1760470258206,-500.0,0.00016438,2]
[391288866,1760470258215,-1040.12,0.00016438,2]
[391288867,1760470258224,-590.69,0.00016438,2]
[391288868,1760470258233,-1310.52,0.00016438,2]
[391288869,1760470258243,-1413.57,0.00016438,2]
[391288870,1760470258252,-500.0,0.00016438,2]
[391288871,1760470258262,-966.64,0.00016438,2]
[391288872,1760470258274,-639.65,0.00016438,2]
[391288873,1760470258283,-4638.38,0.00016438,2]
[391288874,1760470258292,-577.65,0.00016438,2]
[391288875,1760470258303,-2962.26,0.00016438,2]
[391288876,1760470258313,-1137.18,0.00016438,2]
[391288877,1760470258322,-699.56,0.00016438,2]
[391288878,1760470258332,-1123.21,0.00016438,2]
[391288879,1760470258341,-500.0,0.00016438,2]
[391288880,1760470258353,-825.23,0.00016438,2]
[391288881,1760470258362,-500.0,0.00016438,2]
[391288882,1760470258371,-940.64,0.00016438,2]
[391288883,1760470258381,-530.21,0.00016438,2]
[391288884,1760470258392,-2813.0,0.00016438,2]
[391288885,1760470258402,-1663.66,0.00016438,2]
[391288886,1760470258411,-500.0,0.00016438,2]
[391288887,1760470258420,-615.66,0.00016438,2]
[391288888,1760470258430,-1842.21,0.00016438,2]
[391288889,1760470258439,-774.72,0.00016438,2]
[391288890,1760470258449,-1279.0,0.00016438,2]
[391288891,1760470258458,-500.0,0.00016438,2]
[391288892,1760470258470,-2946.87,0.00016438,2]
[391288893,1760470258481,-4531.51,0.00016438,2]
[391288894,1760470258491,-263.357394,0.00016438,2]
[391288895,1760470258500,-263.357394,0.00016438,2]
[391288896,1760470258510,-263.357394,0.00016438,2]
[391288897,1760470258519,-263.357394,0.00016438,2]
[391288898,1760470258529,-263.357394,0.00016438,2]
[391288899,1760470258538,-263.357394,0.00016438,2]
[391288900,1760470258547,-263.357394,0.00016438,2]
[391288901,1760470258557,-263.357394,0.00016438,2]
[391288902,1760470258566,-162.63,0.0001644,2]
[391288903,1760470258575,-203.0,0.00016456,2]
[391288904,1760470258585,-15930.16899935,0.00016462,2]
[391288905,1760470258595,-151.0,0.00016462,2]
[391288906,1760470258606,-753.205406,0.00016462,2]
[391288907,1760470258615,-753.205406,0.00016462,2]
[391288908,1760470258624,-753.205406,0.00016462,2]
[391288909,1760470258633,-753.205406,0.00016462,2]
[391288910,1760470258643,-151.0,0.00016462,2]
[391288911,1760470258652,-151.0,0.00016462,2]
[391288912,1760470258661,-151.0,0.00016462,2]
[391288913,1760470258671,-151.0,0.00016462,2]
[391288914,1760470258680,-643.312878,0.00016462,2]
[391288915,1760470258690,-643.312878,0.00016462,2]
[391288916,1760470258699,-643.312878,0.00016462,2]
[391288917,1760470258709,-643.312878,0.00016462,2]
[391288918,1760470258718,-203.0,0.00016469,2]
[391288919,1760470258728,-500.0,0.00016473,2]
[391288920,1760470258737,-548.45643828,0.00016473,2]
[391288921,1760470258747,-500.0,0.00016473,2]
[391288922,1760470258756,-500.0,0.00016473,2]
[391288923,1760470258765,-498.95818938,0.00016473,2]
[391288924,1760470258774,-500.0,0.00016473,2]
[391288925,1760470258783,-500.35392953,0.00016473,2]
[391288926,1760470258792,-500.0,0.00016473,2]
[391288927,1760470258802,-561.87686741,0.00016473,2]
[391288928,1760470258811,-500.0,0.00016473,2]
[391288929,1760470258820,-500.0,0.00016473,2]
[391288930,1760470258830,-500.73695519,0.00016473,2]
[391288931,1760470258839,-500.0,0.00016473,2]
[391288932,1760470258848,-500.0,0.00016473,2]
[391288933,1760470258866,-516.22632871,0.00016473,2]
[391288934,1760470258877,-500.0,0.00016473,2]
[391288935,1760470258887,-500.0,0.00016473,2]
[391288936,1760470258896,-500.0,0.00016473,2]
[391288937,1760470258906,-500.58868387,0.00016473,2]
[391288938,1760470258915,-462.8385069,0.00016473,2]
[391288939,1760470258927,-500.0,0.00016473,2]
[391288940,1760470258937,-500.0,0.00016473,2]
[391288941,1760470258946,-500.97104398,0.00016473,2]
[391288942,1760470258957,-500.0,0.00016473,2]
[391288943,1760470258966,-500.0,0.00016473,2]
[391288944,1760470258975,-160.5333916,0.00016473,2]
[391288945,1760470258986,-501.20191339,0.00016473,2]
[391288946,1760470258995,-458.97392228,0.00016473,2]
[391288947,1760470259004,-500.0,0.00016473,2]
[391288948,1760470259014,-500.0,0.00016473,2]
[391288949,1760470259023,-500.0,0.00016473,2]
[391288950,1760470259033,-500.0,0.00016473,2]
[391288951,1760470259042,-302.97539072,0.00016473,2]
[391288952,1760470259051,-500.0,0.00016473,2]
[391288953,1760470259551,-340.14788562,0.00016473,2]
[391288954,1760470259561,-500.0,0.00016473,2]
[391288955,1760470259570,-500.0,0.00016473,2]
[391288956,1760470259579,-259.8434649,0.00016473,2]
[391288957,1760470259588,-151.0,0.00016473,2]
[391288958,1760470259597,-151.0,0.00016473,2]
[391288959,1760470259607,-151.0,0.00016473,2]
[391288960,1760470259616,-162.957421,0.00016473,2]
[391288961,1760470259625,-154.136962,0.00016473,2]
[391288962,1760470259635,-151.0,0.00016473,2]
[391288963,1760470259645,-836.886533,0.00016473,2]
[391288964,1760470259655,-836.886533,0.00016473,2]
[391288965,1760470259664,-836.886533,0.00016473,2]
[391288966,1760470259673,-836.886533,0.00016473,2]
[391288967,1760470259682,-3716.18591676,0.00016491,2]
[391288968,1760470259691,-1425.0,0.00016492,2]
[391288969,1760470259700,-474.58,0.000165,2]
[391288970,1760470259709,-547.74946164,0.00016513,2]
[391288971,1760470259718,-200.0,0.00016577,2]
[391288972,1760470259727,-200.0,0.00016578,2]
[391288973,1760470259736,-966.22474038,0.0001658,2]
[391288974,1760470259745,-197.0,0.00016581,2]
[391288975,1760470259755,-3716.18591676,0.00016587,2]
[391288976,1760470259764,-151.630488,0.00016597,2]
[391288977,1760470259773,-151.0,0.00016597,2]
[391288978,1760470259782,-263.357394,0.00016597,2]
[391288979,1760470259792,-263.357394,0.00016597,2]
[391288980,1760470259801,-263.357394,0.00016597,2]
[391288981,1760470259810,-263.357394,0.00016597,2]
[391288982,1760470259820,-215.696926,0.00016597,2]
[391288983,1760470259829,-215.696926,0.00016597,2]
[391288984,1760470259838,-215.696926,0.00016597,2]
[391288985,1760470259852,-215.696926,0.00016597,2]
[391288986,1760470259861,-474.58,0.000166,2]
[391288987,1760470259871,-474.58,0.000166,2]
[391288988,1760470259880,-2108.94202329,0.00016612,2]
[391288989,1760470259889,-2000.0,0.00016616,2]
[391288990,1760470259899,-197.0,0.00016617,2]
[391288991,1760470259909,-583.90995998,0.00016671,2]
[391288992,1760470259918,-3716.18591676,0.00016682,2]
[391288993,1760470259928,-542.73,0.000167,2]
[391288994,1760470259938,-474.58,0.000167,2]
[391288995,1760470259947,-888.7127842,0.00016702,2]
[391288996,1760470259956,-312.03527756,0.00016702,2]
[391288997,1760470259965,-1201.31606025,0.00016711,5]
[391288998,1760470259974,-150.0,0.00016711,2]
[391288999,1760470259984,-300.0,0.00016711,2]
[391289000,1760470259993,-300.0,0.00016711,2]
[391289001,1760470260002,-300.0,0.00016711,2]
[391289002,1760470260012,-300.0,0.00016711,2]
[391289003,1760470260021,-300.0,0.00016711,2]
[391289004,1760470260031,-300.0,0.00016711,2]
[391289005,1760470260040,-300.0,0.00016711,2]
[391289007,1760470260049,-300.0,0.00016711,2]
[391289008,1760470260060,-300.0,0.00016711,2]
[391289009,1760470260070,-300.0,0.00016711,2]
[391289010,1760470260079,-150.0,0.00016711,2]
[391289011,1760470260088,-150.0,0.00016711,2]
[391289012,1760470260098,-150.0,0.00016711,2]
[391289013,1760470260110,-150.0,0.00016711,2]
[391289014,1760470260119,-150.0,0.00016711,2]
[391289015,1760470260128,-150.0,0.00016711,2]
[391289016,1760470260138,-150.0,0.00016711,2]
[391289017,1760470260147,-150.0,0.00016711,2]
[391289018,1760470260157,-150.0,0.00016711,2]
[391289019,1760470260166,-150.0,0.00016711,2]
[391289020,1760470260176,-356.002177,0.00016712,2]
[391289021,1760470260185,-270.138066,0.00016712,2]
[391289022,1760470260194,-270.138066,0.00016712,2]
[391289023,1760470260204,-216.820464,0.00016712,2]
[391289024,1760470260213,-3716.67029,0.00016712,2]
[391289025,1760470260223,-1954.656882,0.00016712,2]
[391289026,1760470260235,-3522.293525,0.00016712,2]
[391289027,1760470260244,-1002.93,0.00016712,2]
[391289028,1760470260254,-1016.04,0.00016712,2]
[391289029,1760470260263,-1081.97,0.00016712,2]
[391289030,1760470260274,-1270.21,0.00016712,2]
[391289031,1760470260283,-1217.28,0.00016712,2]
[391289032,1760470260293,-1480.48,0.00016712,2]
[391289033,1760470260302,-500.0,0.00016712,2]
[391289035,1760470260313,-1753.61,0.00016712,2]
[391289036,1760470260323,-500.0,0.00016712,2]
[391289037,1760470260332,-500.0,0.00016712,2]
[391289038,1760470260342,-1130.79,0.00016712,2]
[391289039,1760470260353,-535.61,0.00016712,2]
[391289040,1760470260363,-500.0,0.00016712,2]
[391289041,1760470260373,-1367.18,0.00016712,2]
[391289042,1760470260388,-3297.12,0.00016712,2]
[391289043,1760470260398,-898.87,0.00016712,2]
[391289044,1760470260408,-661.15,0.00016712,2]
[391289045,1760470260418,-552.91,0.00016712,2]
[391289046,1760470260429,-500.0,0.00016712,2]
[391289047,1760470260440,-1410.07,0.00016712,2]
[391289048,1760470260449,-500.0,0.00016712,2]
[391289049,1760470260462,-500.0,0.00016712,2]
[391289050,1760470260471,-703.39,0.00016712,2]
[391289051,1760470260481,-1557.16,0.00016712,2]
[391289052,1760470260491,-1047.56,0.00016712,2]
[391289053,1760470260500,-600.5,0.00016712,2]
[391289054,1760470260509,-500.0,0.00016712,2]
[391289055,1760470260519,-891.55,0.00016712,2]
[391289056,1760470260528,-645.01,0.00016712,2]
[391289057,1760470260537,-500.0,0.00016712,2]
[391289058,1760470260547,-902.56,0.00016712,2]
[391289060,1760470260556,-500.0,0.00016712,2]
[391289061,1760470260566,-500.0,0.00016712,2]
[391289062,1760470260575,-1136.29,0.00016712,2]
[391289063,1760470260584,-500.0,0.00016712,2]
[391289064,1760470260594,-500.0,0.00016712,2]
[391289065,1760470260604,-500.0,0.00016712,2]
[391289066,1760470260614,-1029.66,0.00016712,2]
[391289067,1760470260624,-500.0,0.00016712,2]
[391289068,1760470260636,-500.0,0.00016712,2]
[391289069,1760470260646,-1473.97,0.00016712,2]
[391289070,1760470260655,-500.0,0.00016712,2]
[391289071,1760470260665,-1334.03,0.00016712,2]
[391289072,1760470260674,-500.0,0.00016712,2]
[391289073,1760470260684,-1490.74,0.00016712,2]
[391289074,1760470260694,-500.0,0.00016712,2]
[391289075,1760470260703,-500.0,0.00016712,2]
[391289076,1760470260713,-500.0,0.00016712,2]
[391289077,1760470260723,-789.35,0.00016712,2]
[391289078,1760470260733,-2159.89,0.00016712,2]
[391289079,1760470260742,-612.88,0.00016712,2]
[391289080,1760470260752,-700.37,0.00016712,2]
[391289081,1760470260762,-500.0,0.00016712,2]
[391289082,1760470260772,-883.13,0.00016712,2]
[391289083,1760470260782,-883.13,0.00016712,2]
[391289084,1760470260791,-500.0,0.00016712,2]
[391289085,1760470260801,-840.38,0.00016712,2]
[391289087,1760470260810,-1041.65,0.00016712,2]
[391289088,1760470260820,-585.66,0.00016712,2]
[391289089,1760470260829,-500.0,0.00016712,2]
[391289090,1760470260839,-500.0,0.00016712,2]
[391289091,1760470260848,-1639.89,0.00016712,2]
[391289092,1760470260858,-500.0,0.00016712,2]
[391289093,1760470260868,-947.54,0.00016712,2]
[391289094,1760470260877,-500.0,0.00016712,2]
[391289095,1760470260887,-500.0,0.00016712,2]
[391289096,1760470260897,-1563.92,0.00016712,2]
[391289097,1760470260908,-500.0,0.00016712,2]
[391289098,1760470260919,-1905.46,0.00016712,2]
[391289099,1760470260929,-849.33,0.00016712,2]
[391289100,1760470260938,-1251.39,0.00016712,2]
[391289101,1760470260948,-749.46,0.00016712,2]
[391289102,1760470260958,-1114.36,0.00016712,2]
[391289103,1760470260968,-500.0,0.00016712,2]
[391289104,1760470260978,-881.45,0.00016712,2]
[391289105,1760470260988,-500.0,0.00016712,2]
[391289106,1760470260998,-500.0,0.00016712,2]
[391289107,1760470261009,-1652.81,0.00016712,2]
[391289108,1760470261020,-1695.89,0.00016712,2]
[391289109,1760470261030,-173.92,0.00016712,2]
[391289110,1760470261039,-500.0,0.00016712,2]
[391289111,1760470261049,-500.0,0.00016712,2]
[391289113,1760470261059,-500.0,0.00016712,2]
[391289114,1760470261068,-500.0,0.00016712,2]
[391289115,1760470261077,-154.861262,0.00016712,2]
[391289116,1760470261086,-500.0,0.00016712,2]
[391289117,1760470261096,-153.143197,0.00016712,2]
[391289118,1760470261106,-500.0,0.00016712,2]
[391289119,1760470261116,-1299.76,0.00016712,2]
[391289120,1760470261126,-500.0,0.00016712,2]
[391289121,1760470261135,-500.0,0.00016712,2]
[391289122,1760470261145,-500.0,0.00016712,2]
[391289123,1760470261154,-500.0,0.00016712,2]
[391289124,1760470261164,-500.0,0.00016712,2]
[391289125,1760470261173,-500.0,0.00016712,2]
[391289126,1760470261183,-500.0,0.00016712,2]
[391289127,1760470261192,-500.0,0.00016712,2]
[391289128,1760470261202,-500.0,0.00016712,2]
[391289129,1760470261211,-583.43,0.00016712,2]
[391289130,1760470261221,-588.97,0.00016712,2]
[391289131,1760470261230,-500.0,0.00016712,2]
[391289132,1760470261242,-500.0,0.00016712,2]
[391289133,1760470261251,-346.69571402,0.00016712,2]
[391289134,1760470261261,-500.0,0.00016712,2]
[391289135,1760470261271,-500.0,0.00016712,2]
[391289136,1760470261280,-500.0,0.00016712,2]
[391289137,1760470261289,-500.0,0.00016712,2]
[391289138,1760470261299,-500.0,0.00016712,2]
[391289139,1760470261310,-500.0,0.00016712,2]
[391289140,1760470261320,-500.0,0.00016712,2]
[391289141,1760470261330,-500.0,0.00016712,2]
[391289142,1760470261339,-1947.9,0.00016712,2]
[391289143,1760470261349,-1148.28,0.00016712,2]
[391289144,1760470261360,-500.0,0.00016712,2]
[391289145,1760470261370,-500.0,0.00016712,2]
[391289146,1760470261381,-500.0,0.00016712,2]
[391289147,1760470261393,-1967.11,0.00016712,2]
[391289148,1760470261403,-327.61806097,0.00016712,2]
[391289149,1760470261412,-500.0,0.00016712,2]
[391289150,1760470261423,-1890.01,0.00016712,2]
[391289151,1760470261432,-500.0,0.00016712,2]
[391289152,1760470261441,-500.0,0.00016712,2]
[391289153,1760470261451,-500.0,0.00016712,2]
[391289154,1760470261461,-262.91178022,0.00016712,2]
[391289155,1760470261471,-500.0,0.00016712,2]
[391289156,1760470261481,-969.98,0.00016712,2]
[391289158,1760470261490,-500.0,0.00016712,2]
[391289159,1760470261500,-609.72,0.00016712,2]
[391289160,1760470261510,-500.0,0.00016712,2]
[391289161,1760470261520,-1095.05,0.00016712,2]
[391289162,1760470261530,-500.0,0.00016712,2]
[391289163,1760470261540,-500.0,0.00016712,2]
[391289164,1760470261550,-1190.56,0.00016712,2]
[391289165,1760470261560,-206.68391162,0.00016712,2]
[391289166,1760470261569,-500.0,0.00016712,2]
[391289167,1760470261579,-500.0,0.00016712,2]
[391289168,1760470261588,-464.68982852,0.00016712,2]
[391289169,1760470261598,-500.0,0.00016712,2]
[391289170,1760470261608,-500.0,0.00016712,2]
[391289171,1760470261617,-500.0,0.00016712,2]
[391289172,1760470261626,-500.0,0.00016712,2]
[391289173,1760470261637,-1925.21,0.00016712,2]
[391289174,1760470261646,-259.13055847,0.00016712,2]
[391289175,1760470261656,-607.76377342,0.00016712,2]
[391289176,1760470261665,-500.0,0.00016712,2]
[391289177,1760470261675,-500.0,0.00016712,2]
[391289178,1760470261685,-500.0,0.00016712,2]
[391289179,1760470261695,-899.42,0.00016712,2]
[391289180,1760470261704,-500.0,0.00016712,2]
[391289181,1760470261713,-151.0,0.00016712,2]
[391289182,1760470261723,-196.414408,0.00016712,2]
[391289183,1760470261732,-500.0,0.00016712,2]
[391289184,1760470261741,-500.0,0.00016712,2]
[391289185,1760470261750,-500.0,0.00016712,2]
[391289186,1760470261760,-1851.66,0.00016712,2]
[391289188,1760470261770,-500.0,0.00016712,2]
[391289189,1760470261779,-500.0,0.00016712,2]
[391289190,1760470261788,-1662.99,0.00016712,2]
[391289191,1760470261797,-500.0,0.00016712,2]
[391289192,1760470261807,-500.0,0.00016712,2]
[391289193,1760470261817,-500.0,0.00016712,2]
[391289194,1760470261826,-500.0,0.00016712,2]
[391289195,1760470261836,-500.0,0.00016712,2]
[391289196,1760470261845,-643.38,0.00016712,2]
[391289197,1760470261856,-500.0,0.00016712,2]
[391289198,1760470261866,-500.0,0.00016712,2]
[391289199,1760470261875,-500.0,0.00016712,2]
[391289200,1760470261885,-500.0,0.00016712,2]
[391289201,1760470262007,-500.0,0.00016712,2]
[391289202,1760470262017,-288.20278515,0.00016712,2]
[391289203,1760470262026,-545.59,0.00016712,2]
[391289204,1760470262036,-500.0,0.00016712,2]
[391289205,1760470262046,-500.0,0.00016712,2]
[391289206,1760470262055,-151.0,0.00016712,2]
[391289207,1760470262065,-151.0,0.00016712,2]
[391289209,1760470262074,-151.0,0.00016712,2]
[391289210,1760470262083,-1563.54,0.00016712,2]
[391289211,1760470262093,-500.0,0.00016712,2]
[391289212,1760470262103,-500.0,0.00016712,2]
[391289213,1760470262114,-408.24755342,0.00016712,2]
[391289214,1760470262124,-500.0,0.00016712,2]
[391289215,1760470262133,-500.0,0.00016712,2]
[391289216,1760470262144,-2066.64,0.00016712,2]
[391289217,1760470262153,-639.57,0.00016712,2]
[391289218,1760470262163,-500.0,0.00016712,2]
[391289219,1760470262173,-1135.3,0.00016712,2]
[391289220,1760470262182,-500.0,0.00016712,2]
[391289221,1760470262191,-1788.4,0.00016712,2]
[391289222,1760470262201,-500.0,0.00016712,2]
[391289223,1760470262210,-553.21,0.00016712,2]
[391289224,1760470262219,-574.43,0.00016712,2]
[391289225,1760470262228,-500.0,0.00016712,2]
[391289226,1760470262238,-500.0,0.00016712,2]
[391289227,1760470262248,-500.0,0.00016712,2]
[391289228,1760470262257,-500.0,0.00016712,2]
[391289229,1760470262267,-510.64,0.00016712,2]
[391289230,1760470262277,-500.0,0.00016712,2]
[391289231,1760470262287,-789.67,0.00016712,2]
[391289232,1760470262297,-672.5,0.00016712,2]
[391289233,1760470262307,-500.0,0.00016712,2]
[391289234,1760470262317,-1162.65,0.00016712,2]
[391289235,1760470262326,-500.0,0.00016712,2]
[391289236,1760470262336,-500.0,0.00016712,2]
[391289238,1760470262345,-500.0,0.00016712,2]
[391289239,1760470262354,-585.68,0.00016712,2]
[391289240,1760470262363,-500.0,0.00016712,2]
[391289241,1760470262372,-500.0,0.00016712,2]
[391289242,1760470262383,-631.45,0.00016712,2]
[391289243,1760470262394,-500.0,0.00016712,2]
[391289244,1760470262403,-500.0,0.00016712,2]
[391289245,1760470262412,-1167.34,0.00016712,2]
[391289246,1760470262422,-500.0,0.00016712,2]
[391289247,1760470262433,-500.0,0.00016712,2]
[391289248,1760470262442,-1847.92,0.00016712,2]
[391289249,1760470262451,-500.0,0.00016712,2]
[391289250,1760470262460,-500.0,0.00016712,2]
[391289251,1760470262470,-500.0,0.00016712,2]
[391289252,1760470262479,-500.0,0.00016712,2]
[391289253,1760470262488,-1532.08,0.00016712,2]
[391289254,1760470262497,-500.0,0.00016712,2]
[391289255,1760470262506,-789.69,0.00016712,2]
[391289256,1760470262515,-500.0,0.00016712,2]
[391289257,1760470262524,-1328.02,0.00016712,2]
[391289258,1760470262534,-1654.08,0.00016712,2]
[391289259,1760470262543,-500.0,0.00016712,2]
[391289260,1760470262552,-634.56,0.00016712,2]
[391289261,1760470262561,-906.08,0.00016712,2]
[391289262,1760470262571,-500.0,0.00016712,2]
[391289263,1760470262580,-500.0,0.00016712,2]
[391289264,1760470262589,-538.12,0.00016712,2]
[391289265,1760470262598,-500.0,0.00016712,2]
[391289266,1760470262607,-500.0,0.00016712,2]
[391289267,1760470262617,-1061.26,0.00016712,2]
[391289268,1760470262626,-500.0,0.00016712,2]
[391289269,1760470262635,-500.0,0.00016712,2]
[391289270,1760470262644,-500.0,0.00016712,2]
[391289271,1760470262654,-151.0,0.00016712,2]
[391289272,1760470262663,-500.0,0.00016712,2]
[391289273,1760470262672,-618.58,0.00016712,2]
[391289274,1760470262681,-500.0,0.00016712,2]
[391289275,1760470262690,-500.0,0.00016712,2]
[391289276,1760470262698,-500.0,0.00016712,2]
[391289277,1760470262708,-500.0,0.00016712,2]
[391289278,1760470262717,-500.0,0.00016712,2]
[391289279,1760470262725,-403.38281143,0.00016712,2]
[391289280,1760470262734,-500.0,0.00016712,2]
[391289281,1760470262743,-500.0,0.00016712,2]
[391289282,1760470262752,-1128.82,0.00016712,2]
[391289283,1760470262761,-500.0,0.00016712,2]
[391289284,1760470262770,-669.16,0.00016712,2]
[391289285,1760470262779,-500.0,0.00016712,2]
[391289286,1760470262787,-500.0,0.00016712,2]
[391289287,1760470262796,-500.0,0.00016712,2]
[391289288,1760470262805,-504.62,0.00016712,2]
[391289289,1760470262814,-550.48,0.00016712,2]
[391289290,1760470262823,-1443.49,0.00016712,2]
[391289291,1760470262832,-500.0,0.00016712,2]
[391289292,1760470262841,-500.0,0.00016712,2]
[391289293,1760470262850,-500.0,0.00016712,2]
[391289294,1760470262859,-1481.44,0.00016712,2]
[391289295,1760470262868,-500.0,0.00016712,2]
[391289296,1760470262877,-1472.05,0.00016712,2]
[391289297,1760470262886,-500.0,0.00016712,2]
[391289298,1760470262895,-500.0,0.00016712,2]
[391289299,1760470262905,-1579.46,0.00016712,2]
[391289300,1760470262914,-500.0,0.00016712,2]
[391289301,1760470262923,-259.26251215,0.00016712,2]
[391289302,1760470262931,-500.0,0.00016712,2]
[391289303,1760470262940,-536.91,0.00016712,2]
[391289304,1760470262949,-1231.16,0.00016712,2]
[391289305,1760470262958,-976.88,0.00016712,2]
[391289306,1760470262966,-500.0,0.00016712,2]
[391289307,1760470262975,-700.83,0.00016712,2]
[391289308,1760470262984,-500.0,0.00016712,2]
[391289310,1760470262993,-500.0,0.00016712,2]
[391289311,1760470263003,-500.0,0.00016712,2]
[391289312,1760470263012,-668.16,0.00016712,2]
[391289313,1760470263021,-779.53,0.00016712,2]
[391289314,1760470263030,-578.51,0.00016712,2]
[391289315,1760470263040,-500.0,0.00016712,2]
[391289316,1760470263049,-500.0,0.00016712,2]
[391289317,1760470263059,-500.0,0.00016712,2]
[391289318,1760470263069,-808.76,0.00016712,2]
[391289319,1760470263078,-500.0,0.00016712,2]
[391289320,1760470263087,-500.0,0.00016712,2]
[391289321,1760470263096,-642.78,0.00016712,2]